bitfinex-derivatives/quotes_SOLF0:USTF0_20251107
["timestamp","ask_amount","ask_price","bid_price","bid_amount"]
[1762534120954,3.04402181,157.05,157.01,0.04038408]
[1762534121258,0.04402181,157.05,157.01,0.04038408]
[1762534121453,3.04402181,157.05,157.01,0.04038408]
[1762534121963,3.04402181,157.05,157.03,5.7356]
[1762534122163,0.04402181,157.05,157.03,5.7356]
[1762534122754,0.04402181,157.05,157.03,6.4856]
[1762534122955,0.04402181,157.05,157.04,0.75]
[1762534123458,0.04402181,157.05,157.03,5.7356]
[1762534124055,0.04402181,157.05,157.03,6.4856]
[1762534124558,0.04402181,157.05,157.04,0.75]
[1762534124762,3.0,157.13,157.06,5.7344]
[1762534124964,3.0,157.13,157.04,0.75]
[1762534125659,0.04168052,157.1,157.04,0.75]
[1762534125865,0.04168052,157.1,157.07,0.04298068]
[1762534126067,0.04168052,157.1,157.07,0.79298068]
[1762534126457,0.04168052,157.1,157.09,5.7335]
[1762534126664,0.04168052,157.1,157.09,6.4835]
[1762534127163,0.04168052,157.1,157.07,0.04298068]
[1762534128161,3.04168052,157.1,157.07,0.04298068]
[1762534130063,0.04168052,157.1,157.07,0.04298068]
[1762534130872,0.04168052,157.1,157.07,6.52708068]
[1762534131064,0.04168052,157.1,157.07,0.79298068]
[1762534131265,0.04168052,157.1,157.07,0.04298068]
[1762534132268,3.04168052,157.1,157.07,0.04298068]
[1762534133673,0.04168052,157.1,157.07,0.04298068]
[1762534133967,0.04168052,157.1,157.07,0.79298068]
[1762534134171,0.04168052,157.1,157.09,0.75]
[1762534134371,3.0,157.18,157.09,0.75]
[1762534134974,8.7304,157.18,157.11,5.7325]
[1762534135174,3.0,157.17,157.11,5.7325]
[1762534135363,3.0,157.17,157.12,0.04439251]
[1762534135568,3.0,157.15,157.12,0.04439251]
[1762534136370,3.0,157.14,157.12,0.04439251]
[1762534136874,8.7319,157.14,157.12,0.04439251]
[1762534137171,3.0,157.12,157.01,0.75]
[1762534137472,3.0,157.12,157.02,0.75]
[1762534138068,0.04220492,157.09,157.06,5.7345]
[1762534138271,3.04220492,157.09,157.05,0.04351944]
[1762534139372,3.04220492,157.09,157.05,5.77831944]
[1762534139575,3.04220492,157.09,157.05,0.04351944]
[1762534141080,5.7359,157.03,156.94,0.79]
[1762534141271,14.02857577,157.08,156.88,18.74714469]
[1762534141272,3.0,157.02,156.91,62.79]
[1762534141471,3.0,157.02,156.91,0.79]
[1762534141873,3.0,157.06,156.91,0.79]
[1762534142176,3.0,157.06,156.98,0.8]
[1762534142479,3.08,157.1,156.98,0.8]
[1762534142780,3.08,157.1,157.03,5.7356]
[1762534143176,0.04879242,157.08,157.05,0.04172589]
[1762534143471,3.12879242,157.08,157.05,0.04172589]
[1762534143871,3.08,157.06,156.94,0.8]
[1762534144182,8.8155,157.04,156.94,0.8]
[1762534144374,3.08,157.04,156.96,5.738]
[1762534144677,3.08,157.04,156.94,0.8]
[1762534144870,3.12044637,157.01,156.97,0.04205655]
[1762534145070,0.04044637,157.01,156.97,0.04200883]
[1762534145270,0.04044637,157.01,156.98,5.7374]
[1762534145469,0.04044637,157.01,156.98,0.84]
[1762534145673,3.12044637,157.01,156.97,0.04200883]
[1762534146075,0.04044637,157.01,156.97,0.04200883]
[1762534146377,0.04044637,157.01,156.98,5.7374]
[1762534146585,0.04044637,157.01,156.97,0.88200883]
[1762534147179,0.04044637,157.01,156.97,0.04200883]
[1762534147481,0.04044637,157.01,156.97,0.88200883]
[1762534147683,0.04044637,157.01,156.99,6.5769]
[1762534148080,3.08,157.11,157.0,0.84]
[1762534148380,3.08,157.11,157.04,5.735]
[1762534148681,3.08,157.11,157.0,0.84]
[1762534149080,3.08,157.11,157.05,5.7348]
[1762534149282,3.08,157.11,157.0,0.84]
[1762534149283,0.04519397,157.07,157.04,0.04694508]
[1762534150073,3.12519397,157.07,157.04,0.04694508]
[1762534150279,3.08,157.06,157.04,0.04694508]
[1762534150583,0.04519397,157.07,157.04,0.04694508]
[1762534150773,0.04519397,157.07,157.04,5.78214508]
[1762534150974,0.04519397,157.07,157.04,0.88694508]
[1762534151385,0.04519397,157.07,157.05,6.5748]
[1762534151681,0.04519397,157.07,157.06,0.84]
[1762534151876,3.08,157.14,157.06,0.84]
[1762534152280,3.08,157.14,157.07,5.734]
[1762534152783,3.08,157.11,157.09,0.04479278]
[1762534153084,3.08,157.11,157.08,0.04185649]
[1762534153280,0.04445583,157.12,156.94,20.77921212]
[1762534153281,3.08,157.07,156.94,9.31537408]
[1762534153580,3.08,157.05,156.94,0.84]
[1762534154074,3.08,157.03,156.94,0.84]
[1762534154484,9.31537408,157.09,156.97,0.04565329]
[1762534154485,3.12834906,157.0,156.97,0.04565329]
[1762534154784,3.1274899,157.0,156.97,0.04097937]
[1762534155187,3.08,156.99,156.97,0.04097937]
[1762534155378,0.0474899,157.0,156.97,0.04097937]
[1762534156173,0.0474899,157.0,156.98,6.5773]
[1762534156578,0.0474899,157.0,156.99,0.84]
[1762534156788,0.0474899,157.0,156.98,5.7373]
[1762534157079,0.0474899,157.0,156.99,0.84]
[1762534157277,3.08,157.07,156.99,0.84]
[1762534157480,3.08,157.11,156.99,0.84]
[1762534158094,3.08,157.11,157.06,5.7344]
[1762534158291,3.08,157.11,157.07,0.04411985]
[1762534158292,0.04512624,157.1,157.07,0.04411985]
[1762534159983,0.04512624,157.1,157.07,0.88411985]
[1762534160886,0.04512624,157.1,157.07,0.04411985]
[1762534161488,0.04512624,157.1,157.07,0.88411985]
[1762534162189,0.04512624,157.1,157.08,5.7337]
[1762534162381,0.04512624,157.1,157.07,0.88411985]
[1762534162685,0.04512624,157.1,157.07,0.04411985]
[1762534163187,3.12512624,157.1,157.07,0.04411985]
[1762534163484,0.04512624,157.1,157.07,0.04411985]
[1762534164187,0.04512624,157.1,157.07,5.77811985]
[1762534164587,0.04512624,157.1,157.08,5.7335]
[1762534164787,0.04512624,157.1,157.09,0.84]
[1762534164978,3.08,157.18,157.09,0.84]
[1762534165185,8.8089,157.22,157.14,5.7314]
[1762534165381,3.08,157.22,157.14,5.7314]
[1762534165581,3.08,157.22,157.15,5.7311]
[1762534165883,3.08,157.22,157.12,0.84]
[1762534166089,3.08,157.18,157.15,0.04801922]
[1762534166279,3.12598741,157.18,157.15,0.04801922]
[1762534167586,3.12598741,157.18,157.08,0.84]
[1762534167793,3.08,157.18,157.08,0.84]
[1762534167984,5.7308,157.17,157.09,5.7334]
[1762534168189,3.08,157.16,157.03,10.15537408]
[1762534168386,3.08,157.15,157.03,0.84]
[1762534168581,4.85544947,157.15,157.03,0.84]
[1762534168782,9.31537408,157.19,157.07,0.04240941]
[1762534168783,3.08,157.1,157.07,0.04240941]
[1762534168985,3.12116796,157.1,157.07,0.04778415]
[1762534169190,3.12116796,157.1,156.99,0.84]
[1762534169386,3.08,157.08,156.99,0.84]
[1762534169894,3.08,157.08,156.96,0.84]
[1762534170190,97.02770085,157.18,156.95,9.31537408]
[1762534170191,3.08,157.13,157.0,0.84]
[1762534170487,8.8122,157.13,157.05,5.7347]
[1762534170694,3.08,157.12,157.01,0.84]
[1762534171088,3.08,157.12,157.07,5.734]
[1762534171586,3.08,157.12,157.05,5.7347]
[1762534171791,3.08,157.09,157.07,0.04613701]
[1762534171985,3.08,157.09,157.0,0.84]
[1762534172186,3.01,157.08,157.06,0.046239]
[1762534173094,3.01,157.07,157.06,0.046239]
[1762534173884,3.05609075,157.09,157.06,0.046239]
[1762534174597,3.01,157.07,157.06,0.046239]
[1762534175091,3.01,157.07,156.96,62.0]
[1762534175395,3.01,157.06,156.98,5.7373]
[1762534175993,3.01,157.06,156.99,5.7368]
[1762534176196,0.04435886,157.04,157.0,0.04879387]
[1762534176492,0.04435886,157.04,157.0,5.78529387]
[1762534177490,3.05435886,157.04,157.0,0.04879387]
[1762534178497,0.04435886,157.04,157.0,0.04879387]
[1762534178697,0.04435886,157.04,157.0,0.88879387]
[1762534179101,0.04435886,157.04,157.03,0.84]
[1762534179792,3.01,157.12,157.05,5.7347]
[1762534180385,3.01,157.12,156.96,0.85]
[1762534180794,0.04744537,157.06,157.02,0.04214448]
[1762534180992,0.04390313,157.06,157.02,5.78412301]
[1762534181890,0.04390313,157.06,157.03,0.85]
[1762534182095,2.95390313,157.06,157.02,0.04832301]
[1762534182899,0.04390313,157.06,157.02,0.04832301]
[1762534183600,0.04390313,157.06,157.02,0.89832301]
[1762534184501,2.95390313,157.06,157.02,0.04832301]
[1762534185001,0.04390313,157.06,157.03,0.85]
[1762534185502,0.04390313,157.06,157.02,0.04832301]
[1762534186395,2.95390313,157.06,157.02,0.04832301]
[1762534186903,0.04390313,157.06,157.03,0.85]
[1762534187402,0.04390313,157.06,157.04,5.7351]
[1762534187699,0.04390313,157.06,157.02,0.04832301]
[1762534187700,2.95390313,157.06,157.02,0.04832301]
[1762534188000,2.95390313,157.06,157.02,5.78412301]
[1762534188795,0.04390313,157.06,157.05,0.85]
[1762534189200,2.91,157.11,157.05,0.85]
[1762534189508,2.91,157.16,157.05,0.85]
[1762534189702,2.91,157.14,157.05,0.85]
[1762534189898,2.91,157.13,157.05,0.85]
[1762534190102,0.0437033,157.11,157.07,0.89787343]
[1762534190305,2.91,157.13,157.07,0.89787343]
[1762534190506,0.04774177,157.11,157.07,0.89787343]
[1762534192101,2.91,157.21,157.1,0.85]
[1762534192506,2.91,157.21,157.13,0.85]
[1762534193004,2.91,157.18,157.15,0.04885692]
[1762534193208,0.04128442,157.18,157.15,0.04309845]
[1762534193405,0.04128442,157.18,157.15,0.89309845]
[1762534193602,0.04128442,157.18,157.15,6.62409845]
[1762534193806,0.04128442,157.18,157.15,0.89309845]
[1762534194200,0.04128442,157.18,157.07,11.468]
[1762534194201,2.91,157.17,157.07,0.85]
[1762534195109,2.91,157.14,157.03,0.85]
[1762534195311,0.04183797,157.1,157.07,0.04868175]
[1762534196108,2.95183797,157.1,157.07,0.04868175]
[1762534197107,2.91,157.08,156.99,0.85]
[1762534197505,17.26778179,157.18,156.99,0.85]
[1762534197506,5.7332,157.1,157.0,0.85]
[1762534198107,0.04642167,157.07,157.03,0.04492681]
[1762534198303,0.04642167,157.07,157.03,0.89492681]
[1762534199111,0.04642167,157.07,157.03,0.04492681]
[1762534199503,2.95642167,157.07,157.03,0.04492681]
[1762534200107,0.04642167,157.07,157.03,0.89492681]
[1762534200306,2.95642167,157.07,157.03,0.04492681]
[1762534201404,2.91,157.04,157.03,0.04492681]
[1762534201611,2.91,157.04,156.9,6.32445192]
[1762534201812,2.91,157.02,156.9,0.85]
[1762534202011,2.91,157.02,156.91,0.84]
[1762534202614,0.04775307,156.98,156.95,0.04247289]
[1762534203013,3.02775307,156.98,156.95,0.04247289]
[1762534203707,0.04775307,156.98,156.95,0.04247289]
[1762534204022,0.04775307,156.98,156.97,0.84]
[1762534204310,0.04775307,156.98,156.95,0.04247289]
[1762534204516,3.02775307,156.98,156.95,0.04247289]
[1762534204706,3.02775307,156.98,156.83,97.99445192]
[1762534204911,2.98,156.97,156.83,92.52]
[1762534205115,2.98,156.95,156.83,92.52]
[1762534205309,2.98,156.95,156.84,0.84]
[1762534205706,0.04593222,156.91,156.88,0.04352038]
[1762534205916,0.04593222,156.91,156.88,0.88352038]
[1762534206113,0.04593222,156.91,156.9,0.84]
[1762534206318,2.98,156.99,156.9,0.84]
[1762534206714,5.91089783,157.1,156.81,66.64]
[1762534206715,2.98,157.03,156.93,0.84]
[1762534207218,2.98,157.01,156.92,5.7395]
[1762534207522,2.98,156.99,156.96,0.04336887]
[1762534207817,3.02177117,156.99,156.96,0.04819201]
[1762534209317,2.98,156.98,156.96,0.04819201]
[1762534210414,2.98,156.97,156.86,5.47445192]
[1762534210614,2.98,156.97,156.84,0.84]
[1762534210807,2.98,156.97,156.81,10.52]
[1762534210808,2.98,156.97,156.87,0.84]
[1762534211012,2.98,157.03,156.87,0.84]
[1762534211423,0.04234784,156.97,156.93,0.04334715]
[1762534211622,0.04234784,156.97,156.93,0.04711888]
[1762534211919,0.04234784,156.97,156.93,0.88711888]
[1762534212127,2.98,157.05,157.0,5.7365]
[1762534212318,2.98,157.05,156.97,62.84]
[1762534212615,2.98,157.05,156.98,5.7372]
[1762534212816,2.98,157.05,156.95,5.47445192]
[1762534213012,0.0455111,157.02,156.98,0.04782362]
[1762534213214,3.0255111,157.02,156.98,0.04782362]
[1762534213822,2.98,156.99,156.98,0.04782362]
[1762534214322,2.98,156.98,156.87,0.84]
[1762534214818,2.98,156.98,156.82,66.66]
[1762534214819,2.98,156.97,156.83,0.84]
[1762534215025,2.98,156.93,156.86,5.7415]
[1762534215220,0.04541991,156.91,156.83,0.84]
[1762534215416,8.76551991,156.91,156.88,0.04500331]
[1762534215620,3.02541991,156.91,156.88,0.04500331]
[1762534216729,2.98,156.9,156.88,0.04500331]
[1762534218128,0.04541991,156.91,156.88,0.04500331]
[1762534218426,0.04541991,156.91,156.9,0.84]
[1762534219323,0.04541991,156.91,156.88,0.88500331]
[1762534219528,2.98,157.01,156.88,0.88500331]
[1762534219730,2.98,157.01,156.87,5.47445192]
[1762534220036,2.98,156.96,156.84,0.84]
[1762534220437,2.98,156.95,156.84,0.84]
[1762534220636,5.78806065,156.91,156.88,0.04679642]
[1762534220829,2.98,156.9,156.88,0.04679642]
[1762534221034,2.98,156.9,156.8,0.84]
[1762534221235,5.741,156.88,156.8,0.84]
[1762534221741,5.7412,156.88,156.8,0.84]
[1762534222044,2.98,156.9,156.76,5.46]
[1762534222246,5.47445192,156.93,156.82,0.04773816]
[1762534222247,8.7223,156.85,156.82,0.04773816]
[1762534222434,2.98,156.84,156.82,0.04840474]
[1762534223339,3.02045249,156.86,156.82,0.04840474]
[1762534223539,8.76245249,156.86,156.82,0.04840474]
[1762534223730,3.02045249,156.86,156.82,0.04840474]
[1762534225934,0.04045249,156.86,156.82,0.88840474]
[1762534226341,3.02045249,156.86,156.82,0.04840474]
[1762534226537,0.04045249,156.86,156.82,0.88840474]
[1762534227340,0.04045249,156.86,156.84,6.5822]
[1762534228241,2.98,156.99,156.88,0.84]
[1762534228642,2.98,156.99,156.89,62.0]
[1762534228844,2.98,156.99,156.88,0.84]
[1762534229038,2.98,156.97,156.88,0.84]
[1762534229239,0.04412536,156.94,156.91,0.88238755]
[1762534230144,0.04412536,156.94,156.91,0.04238755]
[1762534230534,3.02412536,156.94,156.91,0.04238755]
[1762534231540,0.04412536,156.94,156.91,0.04238755]
[1762534231742,0.04412536,156.94,156.91,0.88238755]
[1762534231946,0.04412536,156.94,156.91,0.04238755]
[1762534232149,3.00412536,156.94,156.91,0.04238755]
[1762534232551,0.04412536,156.94,156.91,0.89238755]
[1762534232746,4.79705472,157.05,156.93,5.47445192]
[1762534233049,2.96,157.07,156.98,0.85]
[1762534233747,0.04319348,157.04,157.01,0.04408374]
[1762534234146,0.04319348,157.04,157.02,5.7358]
[1762534234447,2.96,157.07,157.01,0.89408374]
[1762534234448,2.96,157.17,157.04,0.85]
[1762534234643,2.96,157.17,157.03,5.47445192]
[1762534234644,2.96,157.17,157.07,0.85]
[1762534234947,2.96,157.17,157.08,62.0]
[1762534235151,2.96,157.17,157.07,0.85]
[1762534235443,0.04130735,157.14,157.1,0.04210168]
[1762534235844,3.00130735,157.14,157.1,0.04210168]
[1762534238045,0.04130735,157.14,157.1,0.04210168]
[1762534238255,0.04130735,157.14,157.1,6.62500168]
[1762534238453,0.04130735,157.14,157.11,0.85]
[1762534238656,3.00130735,157.14,157.1,0.04210168]
[1762534239554,3.00130735,157.14,156.99,0.85]
[1762534239555,5.47445192,157.13,156.99,0.85]
[1762534239750,2.96,157.12,156.99,0.85]
[1762534239959,2.96,157.09,156.99,0.85]
[1762534240652,3.19602333,157.06,157.02,0.04829603]
[1762534240952,3.19602333,157.06,157.02,0.04797713]
[1762534242044,3.19602333,157.06,156.91,23.36]
[1762534242045,3.19602333,157.06,156.91,0.84]
[1762534242249,3.15,157.06,156.91,0.84]
[1762534242450,3.15,157.06,156.96,5.7379]
[1762534242646,3.15,157.06,156.94,0.84]
[1762534242850,5.735,157.05,156.96,5.738]
[1762534243149,3.19051682,157.02,156.99,0.04768867]
[1762534243453,3.19071039,157.02,156.99,0.04673928]
[1762534243657,0.04071039,157.02,156.99,0.04673928]
[1762534244252,0.04071039,157.02,156.99,0.88673928]
[1762534245057,3.15,157.1,157.0,0.84]
[1762534245655,3.15,157.14,157.0,0.84]
[1762534245844,3.15,157.14,157.06,0.84]
[1762534246158,0.04084422,157.12,157.08,0.88893949]
[1762534247957,3.26084422,157.12,157.08,0.04893949]
[1762534248354,0.04084422,157.12,157.08,0.88893949]
[1762534249553,0.04084422,157.12,157.09,0.84]
[1762534250053,0.04084422,157.12,157.1,0.84]
[1762534250253,3.26084422,157.12,157.08,0.04893949]
[1762534251057,3.26084422,157.12,156.99,6.36445192]
[1762534251263,3.22,157.12,157.0,0.89]
[1762534251761,5.7335,157.09,157.0,6.6263]
[1762534252260,0.04017724,157.06,157.03,0.04793197]
[1762534253461,3.26017724,157.06,157.03,0.04793197]
[1762534255850,3.26017724,157.06,156.87,110.53205105]
[1762534256048,3.26017724,157.06,156.91,0.89]
[1762534256049,3.22,157.06,156.91,0.89]
[1762534256458,5.7361,157.02,156.94,5.7386]
[1762534256659,3.22,157.06,156.91,0.89]
[1762534256962,0.04804782,157.0,156.97,0.0423666]
[1762534257761,0.04804782,157.0,156.97,0.9323666]
[1762534258352,0.04804782,157.0,156.98,0.89]
[1762534258657,3.22,157.1,156.98,0.89]
[1762534258962,5.7323,157.12,157.02,0.89]
[1762534259263,8.18766856,157.14,157.02,0.89]
[1762534259264,3.22,157.14,157.02,0.89]
[1762534259563,0.04836809,157.1,157.06,0.04261397]
[1762534259963,0.04836809,157.1,157.06,0.93261397]
[1762534260263,0.04836809,157.1,157.08,0.89]
[1762534260459,0.04836809,157.1,157.06,0.04261397]
[1762534260657,3.26836809,157.1,157.06,0.04261397]
[1762534260859,0.04836809,157.1,157.06,0.93261397]
[1762534261263,0.04836809,157.1,157.07,5.7338]
[1762534261663,0.04836809,157.1,157.06,0.04261397]
[1762534261858,0.04836809,157.1,157.06,0.93261397]
[1762534262060,0.04836809,157.1,157.06,0.04261397]
[1762534262657,0.04836809,157.1,157.06,5.77681397]
[1762534262862,3.11836809,157.1,157.06,0.04261397]
[1762534263569,3.11836809,157.1,156.97,0.89]
[1762534263762,3.07,157.1,156.97,0.89]
[1762534264165,3.07,157.1,157.01,5.736]
[1762534264364,3.11602844,157.07,157.04,0.0421936]
[1762534264556,3.11239607,157.07,157.04,0.04060894]
[1762534264758,0.04239607,157.07,157.04,0.04060894]
[1762534264972,0.04239607,157.07,157.04,0.97060894]
[1762534265271,3.07,157.17,157.09,5.7331]
[1762534265467,3.07,157.21,157.04,0.93]
[1762534265673,3.07,157.21,157.08,0.93]
[1762534265965,3.07,157.27,157.12,0.93]
[1762534266267,0.04159767,157.21,157.16,0.93]
[1762534266458,1.10674702,157.38,157.21,0.93]
[1762534266459,3.07,157.36,157.21,0.93]
[1762534266867,3.07,157.33,157.21,0.93]
[1762534267063,3.07,157.33,157.15,28.66657464]
[1762534267373,3.07,157.33,157.16,0.93]
[1762534267672,3.11458395,157.26,157.22,0.0402331]
[1762534267966,9.33013087,157.31,157.12,5.7322]
[1762534267967,3.07,157.25,157.12,5.7322]
[1762534268175,3.07,157.25,157.12,6.6622]
[1762534268372,3.07,157.25,157.12,0.93]
[1762534268568,3.07,157.24,157.12,0.93]
[1762534268765,0.04012791,157.2,157.16,0.04186175]
[1762534268970,3.07,157.19,157.16,0.04186175]
[1762534270269,3.07,157.19,157.16,0.00186175]
[1762534271369,3.07,157.19,157.08,0.93]
[1762534272174,3.07,157.19,157.03,67.61]
[1762534272370,3.07,157.19,157.09,0.04605264]
[1762534272371,0.04812843,157.13,157.09,0.04605264]
[1762534272568,0.04812843,157.13,157.09,1.01033612]
[1762534272870,0.04812843,157.13,157.1,0.97]
[1762534273267,0.04812843,157.13,157.12,0.97]
[1762534273466,3.07,157.26,157.12,0.97]
[1762534273665,3.07,157.2,157.08,0.97]
[1762534274071,3.07,157.18,157.04,0.97]
[1762534274271,3.07,157.14,157.04,0.97]
[1762534274470,3.07,157.14,157.0,0.97]
[1762534274676,9.33013087,157.15,157.07,0.04332891]
[1762534274677,3.07,157.1,157.07,0.04332891]
[1762534275176,3.11072187,157.11,157.07,0.04332891]
[1762534275869,0.04072187,157.11,157.07,0.04332891]
[1762534276261,3.11072187,157.11,157.07,0.04332891]
[1762534276867,3.07,157.08,157.07,0.04332891]
[1762534277074,3.07,157.08,156.98,62.97]
[1762534277274,3.07,157.08,156.98,0.97]
[1762534277472,8.804,157.08,156.98,6.707]
[1762534277680,3.07,157.08,156.98,0.97]
[1762534277868,3.07,157.08,156.97,8.44]
[1762534278081,3.07,157.03,157.01,0.04197058]
[1762534278383,3.07,157.03,156.9,92.63]
[1762534278872,5.7369,157.0,156.9,92.63]
[1762534279074,5.7369,157.0,156.9,0.97]
[1762534279273,0.04162043,156.97,156.93,0.04577171]
[1762534279474,0.04162043,156.97,156.93,0.04869134]
[1762534280072,3.11162043,156.97,156.93,0.04869134]
[1762534280777,0.04162043,156.97,156.93,0.04869134]
[1762534281673,3.11162043,156.97,156.93,0.04869134]
[1762534281978,0.04162043,156.97,156.93,0.04869134]
[1762534282188,0.04162043,156.97,156.93,1.01869134]
[1762534282681,0.04162043,156.97,156.93,0.04869134]
[1762534283175,0.04162043,156.97,156.93,1.01869134]
[1762534283975,0.04162043,156.97,156.93,6.75759134]
[1762534284178,0.04162043,156.97,156.93,0.04869134]
[1762534284784,3.11162043,156.97,156.93,0.04869134]
[1762534284986,0.04162043,156.97,156.93,0.04869134]
[1762534285189,0.04162043,156.97,156.93,1.01869134]
[1762534286277,3.07,157.05,156.96,0.97]
[1762534286682,3.07,157.12,156.96,0.97]
[1762534287374,0.04708925,157.06,157.02,0.04616661]
[1762534287580,0.04685843,157.06,157.02,1.01463992]
[1762534287980,3.07,157.12,157.05,0.97]
[1762534288175,3.07,157.12,157.02,0.97]
[1762534289084,3.1177233,157.09,157.05,0.04084323]
[1762534289284,0.04128101,157.09,157.05,0.04506175]
[1762534289788,0.04128101,157.09,157.07,0.97]
[1762534289984,3.07,157.17,157.07,0.97]
[1762534290177,8.8006,157.17,157.07,0.97]
[1762534290376,3.07,157.16,157.07,0.97]
[1762534290683,8.801,157.16,157.07,0.97]
[1762534291082,0.04339263,157.13,157.1,0.04819392]
[1762534291277,3.11339263,157.13,157.1,0.04819392]
[1762534291584,3.11339263,157.13,157.02,0.97]
[1762534291889,3.07,157.13,157.02,0.97]
[1762534292094,8.8019,157.13,157.02,0.97]
[1762534292388,0.04692862,157.09,157.06,0.04865895]
[1762534293491,0.04692862,157.09,157.06,1.06865895]
[1762534293787,0.04692862,157.09,157.06,0.04865895]
[1762534294292,0.04692862,157.09,157.06,1.06865895]
[1762534294588,0.04692862,157.09,157.06,0.04865895]
[1762534294790,3.04692862,157.09,157.06,0.04865895]
[1762534295384,0.04692862,157.09,157.06,0.04865895]
[1762534296083,3.04692862,157.09,157.06,0.04865895]
[1762534297483,8.7339,157.08,157.06,0.04865895]
[1762534297791,3.0,157.07,157.06,0.04865895]
[1762534298493,3.0,157.07,156.95,9.86]
[1762534298998,3.0,157.06,156.9,1.02]
[1762534299391,3.0,157.03,156.9,1.02]
[1762534299590,3.04253391,157.0,156.96,0.04373844]
[1762534299801,3.04253391,157.0,156.96,0.04183897]
[1762534300189,0.04253391,157.0,156.96,0.04183897]
[1762534300691,0.04253391,157.0,156.96,1.06183897]
[1762534303197,0.04253391,157.0,156.98,1.02]
[1762534303792,3.0,157.06,156.99,1.02]
[1762534304785,9.33013087,157.15,157.01,5.77703324]
[1762534304786,0.04365876,157.04,157.01,5.77703324]
[1762534304992,0.04188107,157.04,157.01,6.79712776]
[1762534305192,0.04188107,157.04,157.02,1.02]
[1762534305397,0.04188107,157.04,157.02,6.7556]
[1762534305898,0.04188107,157.04,157.02,1.02]
[1762534306501,3.18,157.1,157.03,1.02]
[1762534307008,3.18,157.1,157.04,5.7349]
[1762534307198,9.33013087,157.19,157.04,5.7349]
[1762534307507,3.18,157.12,157.1,0.0451898]
[1762534307998,0.0462031,157.13,157.1,0.0451898]
[1762534308509,0.0462031,157.13,157.1,1.0651898]
[1762534308903,0.0462031,157.13,157.11,5.7324]
[1762534309207,0.0462031,157.13,157.12,1.02]
[1762534309595,3.18,157.21,157.12,1.02]
[1762534310701,3.2281995,157.18,157.15,0.04467668]
[1762534310902,3.22324505,157.18,157.15,0.04634467]
[1762534311299,0.04324505,157.18,157.15,0.04634467]
[1762534311999,0.04324505,157.18,157.15,1.06634467]
[1762534313504,8.9071,157.26,157.16,1.02]
[1762534313803,3.18,157.26,157.16,1.02]
[1762534314004,3.18,157.25,157.16,1.02]
[1762534314505,0.04745258,157.22,157.19,0.04460236]
[1762534314715,3.18,157.21,157.19,0.04460236]
[1762534315708,3.18,157.2,157.08,1.02]
[1762534316699,3.22168786,157.16,157.12,0.04839323]
[1762534316899,3.22168786,157.16,157.08,1.02]
[1762534316900,5.7311,157.15,157.08,1.02]
[1762534317117,3.18,157.14,157.12,0.04709364]
[1762534318000,3.18,157.14,157.03,8.34]
[1762534318001,3.18,157.13,157.03,9.36]
[1762534318512,3.18,157.13,157.04,1.02]
[1762534319009,0.04352388,157.1,157.07,1.06189222]
[1762534319605,5.47358886,157.25,157.09,1.02]
[1762534319806,3.18,157.24,157.09,1.02]
[1762534320310,3.18,157.24,157.08,5.47358886]
[1762534320311,5.7291,157.21,157.1,1.02]
[1762534320833,0.04741593,157.17,157.14,1.06568628]
[1762534321111,3.18,157.24,157.15,1.02]
[1762534321499,5.89053702,157.35,157.08,100.6575]
[1762534321500,3.18,157.28,157.18,1.02]
[1762534321911,3.18,157.33,157.22,5.7282]
[1762534322214,0.04144009,157.29,157.26,0.04249792]
[1762534322410,2.97,157.29,157.21,1.02]
[1762534322610,2.97,157.29,157.22,62.0]
[1762534322811,0.0436621,157.29,157.26,0.04753832]
[1762534323204,0.0436621,157.29,157.26,1.06753832]